bitfinex/quotes_ETHUSD_20250223
["timestamp","ask_amount","ask_price","bid_price","bid_amount"]
[1740335762086,3.54926,2817.5,2817.2,0.7344]
[1740335762608,3.54946,2817.4,2816.9,4.28439]
[1740335763310,3.54954,2817.3,2816.9,0.7344]
[1740335763791,3.54973,2817.2,2816.7,0.7344]
[1740335764000,3.54976,2817.1,2816.7,0.7344]
[1740335764229,3.55,2816.9,2816.4,0.7344]
[1740335764405,3.55018,2816.8,2816.4,0.7344]
[1740335764572,3.55,2816.9,2816.4,0.7344]
[1740335764975,3.55007,2816.9,2816.4,0.7344]
[1740335765299,3.55007,2816.9,2816.4,4.285]
[1740335767305,3.55067,2816.4,2816.1,0.7344]
[1740335767483,3.5509,2816.2,2815.5,0.7344]
[1740335767684,3.5509,2816.2,2815.7,7.10302]
[1740335767890,3.5509,2816.2,2815.7,3.55151]
[1740335768265,3.5509,2816.2,2815.5,4.28607]
[1740335768465,3.55098,2816.2,2815.8,0.1328103]
[1740335768757,4.25,2816.3,2815.5,4.28606]
[1740335768758,3.55103,2816.1,2815.9,0.1328103]
[1740335768985,3.55103,2816.1,2815.6,3.55163]
[1740335769153,3.55103,2816.1,2816.0,0.1328103]
[1740335769355,3.55103,2816.1,2815.6,3.55163]
[1740335769554,4.331133,2816.1,2815.7,0.1328103]
[1740335770494,0.7543,2816.0,2815.7,0.1328103]
[1740335770794,0.7543,2816.0,2815.6,3.55158]
[1740335771000,0.7543,2816.0,2815.8,0.12885721]
[1740335771205,4.18353373,2816.0,2815.4,0.7344]
[1740335771374,1.18353373,2816.0,2815.6,3.55159]
[1740335771689,1.18353373,2816.0,2815.7,0.11551123]
[1740335771907,3.55138,2815.8,2815.7,0.11551123]
[1740335772211,3.55138,2815.8,2815.7,0.11570063]
[1740335772513,3.55138,2815.8,2815.3,3.55201]
[1740335772514,0.82861737,2815.8,2815.3,3.55201]
[1740335772671,0.82861737,2815.8,2815.7,0.11570063]
[1740335772872,0.82861737,2815.8,2815.3,3.55201]
[1740335773197,1.18353373,2816.0,2815.5,3.55176]
[1740335773379,11.28588373,2816.0,2815.4,3.66753229]
[1740335773588,3.55154,2815.7,2815.1,0.7344]
[1740335773979,3.55154,2815.7,2815.2,3.55211]
[1740335774200,3.55154,2815.7,2815.3,0.11576951]
[1740335774386,4.261827,2815.7,2815.2,3.55211]
[1740335774590,4.261827,2815.7,2815.3,0.11576951]
[1740335774819,4.261827,2815.7,2815.2,3.55211]
[1740335775004,0.710287,2815.7,2815.4,3.66762951]
[1740335775199,4.44804569,2816.0,2815.4,3.55186]
[1740335775398,0.780103,2816.1,2815.5,0.11578673]
[1740335775611,5.0207,2816.3,2815.8,3.55131]
[1740335775815,8.57147,2816.3,2815.8,3.55131]
[1740335776188,8.57147,2816.3,2815.9,0.11578673]
[1740335776627,3.5509,2816.2,2815.9,0.11578673]
[1740335777133,4.25,2816.3,2816.2,3.55088]
[1740335777329,0.7707,2816.5,2815.9,0.11578673]
[1740335777531,0.432119,2816.4,2816.2,0.11555427]
[1740335777732,0.432119,2816.4,2816.0,3.55113]
[1740335777928,0.432119,2816.4,2816.3,0.11555427]
[1740335778098,0.432119,2816.4,2816.0,3.55113]
[1740335778099,0.432119,2816.4,2816.1,3.55091]
[1740335778301,0.432119,2816.4,2816.3,0.11555427]
[1740335778494,0.432119,2816.4,2816.1,3.55091]
[1740335778693,0.432119,2816.4,2816.0,3.55113]
[1740335778995,0.432119,2816.4,2816.1,3.551]
[1740335779190,0.432119,2816.4,2816.1,0.11555427]
[1740335779397,0.432119,2816.4,2816.1,3.55089]
[1740335779719,0.432119,2816.4,2816.2,0.11555427]
[1740335779918,4.25,2816.7,2816.3,3.55075]
[1740335780290,4.25,2816.7,2816.4,3.55063]
[1740335780496,4.25,2816.7,2816.4,0.11535629]
[1740335780721,4.25,2816.7,2816.4,3.66587629]
[1740335781033,4.25,2816.7,2816.4,3.66588629]
[1740335781438,4.25,2816.7,2816.4,0.11535629]
[1740335781998,4.25,2816.7,2816.4,3.66593629]
[1740335782794,4.25,2816.7,2816.4,0.11535629]
[1740335783000,5.43400928,2816.7,2816.5,3.5505]
[1740335783441,5.43400928,2816.7,2816.6,0.11499479]
[1740335783885,5.43400928,2816.7,2816.6,3.66536479]
[1740335784086,4.25,2816.7,2816.6,3.66536479]
[1740335784489,4.25,2816.7,2816.6,0.11499479]
[1740335784900,4.25,2816.7,2816.5,3.5505]
[1740335785190,4.25,2816.7,2816.6,0.11499479]
[1740335785546,4.25,2816.7,2816.5,3.5505]
[1740335785869,3.55025,2816.7,2816.6,0.11499479]
[1740335786076,3.55056,2816.5,2816.0,3.55111]
[1740335786455,7.10062,2816.7,2816.0,3.55111]
[1740335786789,3.55052,2816.5,2816.0,3.55111]
[1740335787303,4.38315,2816.3,2815.7,0.7344]
[1740335787503,4.38315,2816.3,2815.6,8.94154]
[1740335787504,3.5512,2816.0,2815.6,5.39]
[1740335787670,3.55088,2816.2,2815.4,0.7344]
[1740335787671,7.10196,2816.2,2815.4,0.7344]
[1740335787872,4.688315,2816.3,2816.0,3.55106]
[1740335787873,4.25,2816.3,2816.0,3.55106]
[1740335788134,4.25,2816.3,2815.8,3.55128]
[1740335788660,4.25,2816.3,2815.9,3.55126]
[1740335788878,4.25,2816.3,2816.2,3.55088]
[1740335789101,3.55078,2816.3,2815.9,0.7344]
[1740335789306,4.38293,2816.5,2815.8,3.55132]
[1740335789602,4.413923,2816.4,2815.9,3.5512]
[1740335789907,3.55077,2816.3,2815.8,3.55132]
[1740335790413,0.863293,2816.4,2816.1,3.551]
[1740335790557,0.8324,2816.5,2816.1,3.551]
[1740335790754,4.38291,2816.5,2816.1,3.551]
[1740335791502,0.8324,2816.5,2816.2,3.55081]
[1740335791863,0.8324,2816.5,2815.7,3.55144]
[1740335791864,0.8324,2816.5,2816.1,3.55099]
[1740335792998,0.8324,2816.5,2816.3,3.55075]
[1740335793358,4.25,2816.6,2816.1,3.55099]
[1740335793557,7.80043,2816.6,2816.1,3.55099]
[1740335794186,4.25,2816.6,2816.2,3.55077]
[1740335794609,4.35637,2816.7,2816.2,3.55077]
[1740335794911,6.14780643,2816.7,2816.2,3.55077]
[1740335795409,2.59753643,2816.7,2816.1,3.55094]
[1740335795715,6.14784643,2816.7,2816.2,3.55082]
[1740335796362,2.59753643,2816.7,2816.1,0.7344]
[1740335796705,2.59753643,2816.7,2816.3,3.55064]
[1740335797608,6.14778643,2816.7,2816.3,3.55064]
[1740335798326,2.59753643,2816.7,2816.3,3.55064]
[1740335798510,2.59753643,2816.7,2816.4,0.11498615]
[1740335800153,3.5505,2816.5,2816.4,0.11498615]
[1740335800511,3.5505,2816.5,2816.1,3.55095]
[1740335800712,3.5505,2816.5,2816.4,0.11498615]
[1740335801229,4.89014764,2816.6,2816.1,3.55095]
[1740335801548,4.89014764,2816.6,2816.4,0.11498615]
[1740335801725,4.89014764,2816.6,2816.1,7.10185]
[1740335801939,4.89014764,2816.6,2816.5,0.11498615]
[1740335802255,5.69623764,2816.6,2816.5,0.11498615]
[1740335802552,3.55067,2816.4,2815.9,3.55116]
[1740335802722,3.55067,2816.4,2815.7,3.55143]
[1740335802723,3.55093,2816.2,2815.7,3.55145]
[1740335802927,3.5509,2816.2,2816.0,0.11498615]
[1740335803126,7.1019,2816.2,2815.7,3.55145]
[1740335803329,3.5509,2816.2,2816.1,0.11486566]
[1740335803640,5.067162,2816.2,2815.7,3.55145]
[1740335803846,4.357,2816.2,2816.1,0.11486566]
[1740335804156,4.357,2816.2,2815.8,3.55138]
[1740335804330,4.357,2816.2,2816.1,0.11486566]
[1740335804530,4.357,2816.2,2815.8,3.55138]
[1740335804731,4.357,2816.2,2816.1,0.1149259]
[1740335804957,4.357,2816.2,2815.8,3.55138]
[1740335805131,4.357,2816.2,2816.1,0.1149259]
[1740335805653,4.357,2816.2,2815.7,3.55144]
[1740335805868,4.357,2816.2,2816.1,0.1149259]
[1740335806029,4.357,2816.2,2815.8,3.55138]
[1740335806369,0.8061,2816.2,2815.8,3.55138]
[1740335806567,0.8061,2816.2,2815.9,0.11491729]
[1740335806870,3.55077,2816.3,2815.9,3.66616729]
[1740335809372,4.34924,2816.4,2815.9,3.66616729]
[1740335810079,4.25,2816.6,2816.5,3.5505]
[1740335810260,4.25,2816.6,2816.4,3.55051]
[1740335810430,4.25,2816.6,2816.0,4.28553]
[1740335810631,4.25,2816.6,2816.4,3.55056]
[1740335811037,4.25,2816.6,2816.5,3.66540869]
[1740335812549,3.0,2816.7,2816.5,3.66540869]
[1740335813077,4.25,2816.8,2816.5,3.66540869]
[1740335826841,5.34294748,2817.0,2816.5,3.66540869]
[1740335827041,4.25,2817.2,2816.5,1.21584956]
[1740335827257,4.25,2817.2,2817.1,3.54974]
[1740335827741,4.25,2817.2,2817.1,3.66414101]
[1740335828555,8.62374,2817.5,2817.1,3.66414101]
[1740335828759,4.25,2817.5,2817.2,3.54961]
[1740335828994,0.8245,2817.7,2817.4,3.54937]
[1740335829147,3.82463234,2817.8,2817.4,3.54937]
[1740335829148,4.066698,2817.8,2817.4,3.54937]
[1740335829347,3.0,2817.8,2817.5,0.11416872]
[1740335829781,1.891103,2817.9,2816.9,0.7344]
[1740335829963,1.891103,2817.9,2817.5,3.54918]
[1740335829964,0.8245,2817.9,2817.5,3.54918]
[1740335830172,4.96260843,2817.9,2817.6,3.5491]
[1740335830490,4.96260843,2817.9,2817.5,3.54918]
[1740335830693,4.96260843,2817.9,2817.7,0.11382466]
[1740335830887,4.96260843,2817.9,2817.5,3.54918]
[1740335831189,4.25,2818.0,2817.8,0.11382466]
[1740335831346,0.26014472,2817.9,2817.6,3.5491]
[1740335831547,0.26014472,2817.9,2817.7,0.11382466]
[1740335831789,0.26014472,2817.9,2817.5,3.54918]
[1740335831988,0.26014472,2817.9,2817.8,0.11382466]
[1740335832192,0.26014472,2817.9,2817.5,3.54918]
[1740335832896,0.26014472,2817.9,2817.6,0.11382466]
[1740335836123,4.25,2818.0,2817.9,3.54874]
[1740335836619,7.33005,2818.3,2817.9,3.66232249]
[1740335836820,3.7818,2818.3,2817.9,3.66232249]
[1740335837116,3.7818,2818.3,2817.9,3.54873]
[1740335837487,0.7818,2818.5,2818.1,3.54846]
[1740335837822,3.0,2818.4,2818.1,3.54848]
[1740335838024,5.0318,2818.5,2818.2,0.11252596]
[1740335838171,5.301574,2818.5,2818.2,0.11252596]
[1740335838524,5.301574,2818.5,2818.2,3.66087596]
[1740335838724,4.25,2818.5,2818.4,3.54811]
[1740335838887,4.614112,2818.7,2818.3,3.54816]
[1740335839092,1.066372,2818.7,2818.3,3.54816]
[1740335839406,5.0318,2818.8,2818.4,3.66053139]
[1740335840288,4.25,2818.8,2818.5,3.54797]
[1740335840594,4.25,2818.8,2818.5,3.54792]
[1740335840924,4.25,2818.8,2818.6,0.11186413]
[1740335841273,4.25,2818.8,2818.6,3.65971413]
[1740335841733,4.25,2818.8,2818.7,3.54773]
[1740335842020,2.75793434,2819.2,2818.8,3.54756]
[1740335842021,4.25,2819.1,2818.8,3.54756]
[1740335842214,4.25,2819.1,2818.7,0.11186413]
[1740335842427,3.81561497,2819.0,2818.5,3.54798]
[1740335842926,3.54749,2818.9,2818.6,0.11186413]
[1740335843108,3.54749,2818.9,2818.4,7.83045]
[1740335843422,3.54749,2818.9,2818.5,0.11186413]
[1740335843670,3.54749,2818.9,2818.5,3.65983413]
[1740335844993,3.54749,2818.9,2818.5,0.11186413]
[1740335845488,7.79723,2819.1,2818.6,3.54778]
[1740335845860,7.79723,2819.1,2818.7,0.11155484]
[1740335846441,4.25,2819.1,2818.7,0.11155484]
[1740335846785,4.51066476,2819.1,2818.7,0.36595148]
[1740335846984,3.54724,2819.1,2818.8,0.11047194]
[1740335847286,4.36551,2819.2,2818.8,0.11047194]
[1740335848086,0.8184,2819.2,2818.8,3.65797194]
[1740335848245,0.8184,2819.2,2818.8,3.5475]
[1740335848442,0.8184,2819.2,2818.9,0.11046335]
[1740335849654,3.0,2819.4,2818.9,3.65792335]
[1740335849856,8.015,2819.4,2818.9,3.65792335]
[1740335850060,0.26559351,2819.3,2818.9,3.65792335]
[1740335851397,0.26559351,2819.3,2818.9,0.11046335]
[1740335852298,0.26559351,2819.3,2818.9,3.65790335]
[1740335853691,3.81258351,2819.3,2818.9,0.11046335]
[1740335854901,3.81258351,2819.3,2818.9,3.65793335]
[1740335855578,3.81258351,2819.3,2818.9,0.11046335]
[1740335856670,3.81258351,2819.3,2818.8,3.5475]
[1740335857501,3.81258351,2819.3,2818.9,3.65792335]
[1740335857674,3.81258351,2819.3,2818.9,0.11046335]
[1740335858708,3.81258351,2819.3,2818.9,0.84486335]
[1740335859010,3.81258351,2819.3,2818.9,0.11046335]
[1740335859161,3.54712,2819.2,2818.9,0.11046335]
[1740335859369,0.7859,2818.9,2818.1,4.28282]
[1740335859674,3.54797,2818.6,2818.2,0.10635716]
[1740335860277,8.5834,2818.9,2818.2,0.10635716]
[1740335860476,4.78835023,2818.8,2818.2,0.10635716]
[1740335860696,3.5476,2818.8,2818.3,3.54817]
[1740335860893,7.09533,2818.8,2818.3,3.54817]
[1740335861109,3.54798,2818.5,2818.4,0.10274406]
[1740335861275,4.33388,2818.5,2818.4,0.10274406]
[1740335861461,3.54829,2818.3,2817.8,0.7344]
[1740335861901,3.54837,2818.2,2817.9,0.10260215]
[1740335862908,4.334,2818.5,2817.9,3.65132215]
[1740335863067,0.27032426,2818.5,2818.3,0.7344]
[1740335863463,0.27032426,2818.5,2818.4,0.1028166]
[1740335864202,7.79761,2818.8,2818.4,0.1028166]
[1740335864671,7.79761,2818.8,2818.3,0.7344]
[1740335864873,7.79761,2818.8,2818.5,0.1028166]
[1740335865078,7.79761,2818.8,2818.3,0.7344]
[1740335865274,7.79761,2818.8,2818.6,0.1028166]
[1740335865518,3.54774,2818.7,2818.3,0.7344]
[1740335865690,3.54793,2818.6,2818.3,0.7344]
[1740335866026,3.54786,2818.6,2818.1,3.54848]
[1740335867094,3.54786,2818.6,2818.1,7.09687]
[1740335867281,3.54786,2818.6,2818.1,3.54839]
[1740335868003,0.27154758,2818.5,2818.2,3.54831]
[1740335868816,0.27154758,2818.5,2818.3,3.54816]
[1740335869898,0.27154758,2818.5,2818.4,3.54811]
[1740335870337,4.25,2818.8,2818.5,4.28234]
[1740335870507,4.25,2818.8,2818.5,0.7344]
[1740335871010,7.7976,2818.8,2818.4,3.54804]
[1740335871834,4.25,2818.8,2818.4,3.54804]
[1740335872016,4.25,2818.8,2818.4,7.09608]
[1740335872413,4.25,2818.8,2818.4,3.54804]
[1740335872617,4.25,2818.8,2818.4,7.09608]
[1740335872845,4.25,2818.8,2818.5,3.54797]
[1740335873014,4.25,2818.8,2818.4,3.54804]
[1740335873220,4.25,2818.8,2818.5,3.54798]
[1740335873595,4.25,2818.8,2818.6,0.10316824]
[1740335874725,4.25,2818.8,2818.4,3.54804]
[1740335874924,3.54751,2818.9,2818.5,0.10316824]
[1740335875424,3.54761,2818.8,2818.5,0.10316824]
[1740335875625,3.54761,2818.8,2818.4,3.54809]
[1740335875851,3.54761,2818.8,2818.6,0.10316824]
[1740335876144,3.54761,2818.8,2818.7,0.10316824]
[1740335876453,3.54761,2818.8,2818.4,3.54809]
[1740335876745,3.54761,2818.8,2818.5,0.10316824]
[1740335881460,3.54758,2818.9,2818.5,0.10316824]
[1740335881819,3.54743,2819.0,2818.5,0.10316824]
[1740335882021,3.54755,2818.9,2818.5,3.65114824]
[1740335882216,3.54755,2818.9,2818.5,0.10316824]
[1740335882636,3.54761,2818.8,2818.5,0.10316824]
[1740335882959,3.54735,2819.0,2818.5,3.65113824]
[1740335883275,3.54744,2819.0,2818.5,3.65113824]
[1740335883472,8.61572,2819.1,2818.7,3.54773]
[1740335883672,8.61572,2819.1,2818.6,4.28225]
[1740335883862,8.61572,2819.1,2818.8,0.10301385]
[1740335884047,8.61572,2819.1,2818.6,4.28225]
[1740335884249,8.61572,2819.1,2818.9,0.10301385]
[1740335884570,8.61572,2819.1,2819.0,0.10301385]
[1740335884778,7.79732,2819.1,2818.7,3.54769]
[1740335884981,7.79732,2819.1,2818.8,0.10301385]
[1740335885188,7.79732,2819.1,2818.6,4.28225]
[1740335885332,7.79732,2819.1,2818.7,0.10301385]
[1740335886439,4.25,2819.1,2818.7,3.65068385]
[1740335886634,4.25,2819.1,2818.8,3.54756]
[1740335886841,3.54711,2819.2,2818.8,3.54756]
[1740335887055,3.54711,2819.2,2818.9,0.10294523]
[1740335887277,7.63159351,2819.3,2818.9,0.10294523]
[1740335888051,1.08459351,2819.3,2818.9,0.10294523]
[1740335888249,4.25,2819.6,2819.3,3.54693]
[1740335888472,4.25,2819.6,2819.5,3.54672]
[1740335888860,0.8106,2820.0,2819.2,4.28149]
[1740335889062,0.8106,2820.0,2819.6,3.54654]
[1740335889482,0.27116361,2820.1,2819.8,4.28069]
[1740335889644,0.27116361,2820.1,2819.8,0.7344]
[1740335889983,0.27116361,2820.1,2819.9,0.1013296]
[1740335890358,3.54585,2820.2,2819.9,0.1013296]
[1740335891878,3.0,2820.3,2819.9,0.1013296]
[1740335892085,6.5458,2820.3,2819.9,0.1013296]
[1740335892484,0.8106,2820.4,2819.9,3.6474296]
[1740335892785,0.8106,2820.4,2820.0,3.98415296]
[1740335892952,4.61940433,2820.4,2820.1,0.10114104]
[1740335893153,3.54573,2820.3,2820.1,0.10114104]
[1740335893383,4.61933433,2820.4,2819.8,4.28068]
[1740335893579,8.16501433,2820.4,2819.9,0.52920904]
[1740335894485,8.16505433,2820.4,2819.9,4.07539904]
[1740335894837,3.54581,2820.3,2819.9,0.52920904]
[1740335895237,3.54609,2820.0,2819.9,0.10114104]
[1740335895459,4.36949,2820.0,2819.9,0.10114104]
[1740335895694,3.54585,2820.2,2819.6,3.54654]
[1740335895841,3.54609,2820.0,2819.9,0.10102106]
[1740335896041,3.54657,2819.7,2819.1,4.28163]
[1740335896252,3.54657,2819.7,2819.1,5.629418]
[1740335896542,3.5468,2819.5,2819.1,2.082188]
[1740335896741,3.5468,2819.5,2819.1,0.7344]
[1740335897285,0.8234,2819.8,2819.1,0.7344]
[1740335897286,3.54707,2819.3,2819.1,0.7344]
[1740335897443,3.54733,2819.1,2818.8,0.7344]
[1740335897644,3.54735,2819.0,2818.6,0.9934]
[1740335897839,3.5475,2818.9,2818.7,0.454138]
[1740335898071,3.5477,2818.8,2818.4,0.7344]
[1740335898278,3.54775,2818.7,2818.4,0.7344]
[1740335898840,4.37076,2819.0,2818.4,0.7344]
[1740335899047,4.37076,2819.0,2818.4,4.28249]
[1740335899272,4.37076,2819.0,2818.4,4.28242]
[1740335899474,4.25,2819.3,2818.9,3.54737]
[1740335899676,3.5471,2819.2,2818.7,3.54764]
[1740335900091,3.5471,2819.2,2818.8,3.5476]
[1740335900413,3.547,2819.3,2818.8,3.5476]
[1740335901609,3.54707,2819.3,2818.8,3.5476]
[1740335901815,3.54716,2819.2,2818.6,0.7344]
[1740335902498,3.5471,2819.2,2818.7,3.54768]
[1740335902814,3.5471,2819.2,2818.6,0.7344]
[1740335902999,3.54731,2819.1,2818.6,0.7344]
[1740335903402,3.54731,2819.1,2818.7,0.09453498]
[1740335908624,3.5471,2819.2,2818.7,0.09453498]
[1740335908924,3.54736,2819.0,2818.7,0.09453498]
[1740335914295,7.0948,2819.0,2818.7,0.09453498]
[1740335914928,3.54736,2819.0,2818.7,0.09453498]
[1740335915140,3.54724,2819.1,2818.7,0.09453498]
[1740335915701,3.54735,2819.0,2818.7,0.09453498]
[1740335917594,0.8234,2819.5,2818.7,0.09453498]
[1740335917952,3.5476,2818.8,2818.7,0.09453498]
[1740335918298,3.5481,2818.5,2818.3,0.7344]
[1740335918497,3.54811,2818.4,2818.3,0.7344]
[1740335918740,3.54811,2818.4,2818.1,0.7344]
[1740335918951,3.5475,2818.9,2817.7,8.14793434]
[1740335918952,3.54855,2818.1,2817.7,0.7344]
[1740335919300,3.54833,2818.3,2817.8,3.54878]
[1740335919499,4.36964,2818.5,2817.9,3.54873]
[1740335919739,4.36964,2818.5,2817.7,4.28327]
[1740335919944,3.54811,2818.4,2817.7,0.7344]
[1740335920250,4.36964,2818.5,2817.7,0.7344]
[1740335920545,3.54834,2818.3,2817.8,3.54886]
[1740335921316,0.8216,2818.5,2817.7,0.7344]
[1740335921518,3.5484,2818.2,2817.7,4.28333]
[1740335921922,3.54869,2818.0,2817.7,0.7344]
[1740335922934,3.54837,2818.2,2817.7,0.7344]
[1740335923135,3.54837,2818.2,2817.8,3.54885]
[1740335924234,3.54825,2818.3,2817.8,3.54879]
[1740335924441,7.09656,2818.3,2817.8,3.54879]
[1740335924953,3.54825,2818.3,2817.8,3.54879]
[1740335925150,3.54825,2818.3,2817.8,4.332013]
[1740335925335,3.54849,2818.1,2817.7,0.7344]
[1740335926201,7.09708,2818.1,2817.7,0.7344]
[1740335926356,3.54849,2818.1,2817.7,0.7344]
[1740335928928,3.54849,2818.1,2817.7,4.28338]
[1740335929383,3.54849,2818.1,2817.7,0.7344]
[1740335929665,3.54831,2818.3,2817.7,4.711731]
[1740335929837,4.25,2818.6,2817.8,3.54886]
[1740335930064,4.25,2818.6,2818.4,0.7344]
[1740335930242,3.81394486,2818.8,2818.4,0.7344]
[1740335930842,0.26627486,2818.8,2818.4,4.28242]
[1740335931284,4.25,2818.9,2818.4,4.28242]
[1740335931474,7.79757,2818.9,2818.4,7.83045]
[1740335931681,7.79757,2818.9,2818.4,4.28242]
[1740335932162,3.54768,2818.8,2818.4,0.7344]
[1740335932992,3.54768,2818.8,2818.4,4.28249]
[1740335933199,4.25,2818.9,2818.4,4.28249]
[1740335933340,7.79754,2818.9,2818.5,0.09002223]
[1740335933545,4.25,2818.9,2818.5,0.09002223]
[1740335933768,4.25,2818.9,2818.6,3.5478]
[1740335933969,4.25,2818.9,2818.8,3.5476]
[1740335934182,4.25,2818.9,2818.4,4.28244]
[1740335934360,3.81248215,2819.1,2818.6,3.54776]
[1740335934561,3.81248215,2819.1,2818.7,0.09002223]
[1740335935783,3.54737,2819.0,2818.7,0.09002223]
[1740335935992,4.25,2819.2,2818.7,3.63773223]
[1740335935993,7.25,2819.2,2818.7,3.63773223]
[1740335936279,3.0,2819.2,2818.7,3.63773223]
[1740335936486,3.54717,2819.2,2818.7,7.18540223]
[1740335936682,5.0375,2819.5,2818.8,0.7344]
[1740335936890,5.0375,2819.5,2819.1,3.54713]
[1740335937195,8.58429,2819.5,2819.2,0.08932845]
[1740335937389,8.58429,2819.5,2819.0,3.54732]
[1740335937616,3.54686,2819.4,2819.0,3.54732]
[1740335937773,3.54686,2819.4,2819.1,0.08932845]
[1740335938113,7.0938,2819.4,2819.1,0.08932845]
[1740335938394,3.54686,2819.4,2818.9,3.54747]
[1740335938602,7.09378,2819.4,2819.0,0.0892257]
[1740335939114,3.54686,2819.4,2819.0,0.0892257]
[1740335939800,7.0938,2819.4,2819.0,0.0892257]
[1740335940008,3.54686,2819.4,2819.0,0.0892257]
[1740335942799,3.54724,2819.1,2818.8,0.7344]
[1740335942954,0.7875,2819.1,2818.4,0.7344]
[1740335943152,0.7875,2819.1,2818.9,0.08839492]
[1740335943358,4.33474,2819.1,2818.6,3.54782]
[1740335943665,4.33474,2819.1,2818.7,0.08523795]
[1740335944591,2.15147343,2819.1,2818.7,0.08523795]
[1740335944749,3.5476,2818.8,2818.2,9.67274]
[1740335944950,3.54777,2818.7,2818.2,9.67274]
[1740335945152,3.54748,2818.9,2818.3,0.08536639]
[1740335945384,3.54811,2818.4,2818.3,0.08536639]
[1740335945582,3.54782,2818.7,2818.3,0.08536639]
[1740335945793,4.33519,2818.8,2818.3,3.54818]
[1740335945990,4.33519,2818.8,2818.4,0.0854349]
[1740335947393,3.54769,2818.8,2818.4,0.0854349]
[1740335947753,3.54769,2818.8,2818.4,3.5481]
[1740335947953,3.54769,2818.8,2818.5,0.08552053]
[1740335948995,4.25,2819.0,2818.5,3.63348053]
[1740335949301,3.54724,2819.1,2818.6,4.28225]
[1740335949594,3.54724,2819.1,2818.7,3.63321197]
[1740335950000,10.7971,2819.2,2818.7,3.63321197]
[1740335950297,7.25,2819.2,2818.8,3.54749]
[1740335950471,3.54698,2819.3,2818.9,3.54741]
[1740335950672,3.54698,2819.3,2818.9,3.63278495]
[1740335951274,3.0,2819.4,2818.9,0.08537495]
[1740335951460,3.54717,2819.2,2818.9,0.08537495]
[1740335951664,3.54717,2819.2,2818.7,3.54766]
[1740335951902,3.54717,2819.2,2819.0,0.08537495]
[1740335952088,3.54717,2819.2,2818.7,3.54766]
[1740335952500,3.54717,2819.2,2818.8,0.08537495]
[1740335952707,4.594139,2819.2,2818.8,0.08537495]
[1740335952910,3.54717,2819.2,2818.8,0.08537495]
[1740335953208,3.54709,2819.3,2818.8,3.63291495]
[1740335953510,7.09415,2819.3,2818.8,3.63291495]
[1740335953725,3.54706,2819.3,2818.8,3.63291495]
[1740335954818,3.269016,2819.6,2819.2,3.54706]
[1740335955115,3.269016,2819.6,2819.3,0.08546913]
[1740335955282,6.30423434,2819.9,2819.3,0.08546913]
[1740335955620,3.54648,2819.7,2819.4,0.08546913]
[1740335956912,3.80909283,2819.7,2819.4,0.08546913]
[1740335957114,0.26261283,2819.7,2819.4,3.63227913]
[1740335957414,4.25,2819.8,2819.5,3.5467]
[1740335957656,4.25,2819.8,2819.6,0.08530645]
[1740335961095,7.3593164,2819.9,2819.6,0.08530645]
[1740335961497,3.54635,2819.8,2819.6,0.08530645]
[1740335962641,3.54647,2819.7,2819.6,0.08530645]
[1740335962847,3.54635,2819.8,2819.6,0.08530645]
[1740335963908,3.54647,2819.7,2819.6,0.08530645]
[1740335964457,3.54707,2819.3,2819.0,0.7344]
[1740335964635,3.54673,2819.5,2819.0,0.7344]
[1740335964953,3.54686,2819.4,2819.0,4.28169]
[1740335965154,3.54711,2819.2,2818.7,0.7344]
[1740335965356,3.54733,2819.1,2818.7,0.7344]
[1740335965654,3.54733,2819.1,2818.3,3.80716]
[1740335965655,3.54752,2818.9,2818.4,4.28249]
[1740335966022,3.54736,2819.0,2818.5,3.54791]
[1740335967352,3.54736,2819.0,2818.6,3.54785]
[1740335969250,3.54736,2819.0,2818.4,0.7344]
[1740335969552,3.54748,2818.9,2818.4,4.2825]
[1740335970746,3.54798,2818.5,2818.4,0.7344]
[1740335970944,3.54789,2818.6,2818.2,0.7344]
[1740335971413,0.71514332,2818.5,2818.2,0.7344]
[1740335971954,0.71514332,2818.5,2818.2,4.28276]
[1740335972924,0.71514332,2818.5,2818.3,3.54822]
[1740335973116,0.71514332,2818.5,2818.4,3.54811]
[1740335973317,0.71514332,2818.5,2818.3,3.54822]
[1740335973834,0.71514332,2818.5,2818.3,3.54817]
[1740335974546,0.71514332,2818.5,2818.2,4.28274]
[1740335974716,0.71514332,2818.5,2818.2,0.7344]
[1740335975559,0.71514332,2818.5,2818.2,4.28275]
[1740335975763,0.71514332,2818.5,2818.2,0.7344]
[1740335975934,0.71514332,2818.5,2818.3,3.54815]
[1740335976138,0.71514332,2818.5,2818.4,3.54811]
[1740335976964,0.71514332,2818.5,2818.2,4.96608203]
[1740335977460,4.26318332,2818.5,2818.2,0.7344]
[1740335977664,4.26318332,2818.5,2818.0,0.7344]
[1740335977665,3.54816,2818.4,2818.0,0.7344]
[1740335977962,3.5483,2818.3,2817.8,1.46074906]
[1740335978129,3.54842,2818.2,2817.8,0.7344]
[1740335978530,3.54842,2818.2,2817.9,0.07688561]
[1740335978803,7.0966,2818.3,2817.9,0.07688561]
[1740335978929,3.54838,2818.2,2817.9,0.07688561]
[1740335979361,3.54824,2818.3,2817.9,0.07688561]
[1740335979362,0.71704145,2818.0,2817.9,0.07688561]
[1740335979925,0.71704145,2818.0,2817.7,3.54892]
[1740335980226,0.71704145,2818.0,2817.6,0.7344]
[1740335980227,4.26572145,2818.0,2817.6,0.7344]
[1740335980427,0.71704145,2818.0,2817.7,0.07688561]
[1740335981661,0.71704145,2818.0,2817.8,3.54884]
[1740335981878,0.71704145,2818.0,2817.6,0.7344]
[1740335982163,0.71704145,2818.0,2817.9,3.54874]
[1740335982749,0.71704145,2818.0,2817.9,3.6260448]
[1740335990392,0.71704145,2818.0,2817.9,0.0773048]